[Event "*** SCC Grand Prix: Titled Tuesday Blitz"]
[Site "Chess.com"]
[Date "2020.08.25"]
[Round "4"]
[White "SaqoChess_Twitch"]
[Black "labdalla"]
[Result "1-0"]
[WhiteElo "2434"]
[BlackElo "2237"]
[TimeControl "180+1"]
[EndTime "10:38:59 PDT"]
[Termination "SaqoChess_Twitch won by resignation"]

1. d4 {[%clk 0:03:00.9]} 1... Nf6 {[%clk 0:02:59.9]} 2. c4 {[%clk 0:03:01.2]}
2... e6 {[%clk 0:03:00.5]} 3. Nc3 {[%clk 0:03:01.8]} 3... c5 {[%clk 0:02:51.5]}
4. d5 {[%clk 0:03:01.5]} 4... exd5 {[%clk 0:02:52.4]} 5. cxd5 {[%clk 0:03:02.4]}
5... Bd6 {[%clk 0:02:52.7]} 6. Nf3 {[%clk 0:03:02.2]} 6... O-O {[%clk
0:02:48.9]} 7. g3 {[%clk 0:03:02.5]} 7... Bc7 {[%clk 0:02:48.9]} 8. Bg2 {[%clk
0:03:03.4]} 8... d6 {[%clk 0:02:49.3]} 9. O-O {[%clk 0:03:04.2]} 9... a6 {[%clk
0:02:49.5]} 10. a4 {[%clk 0:03:04.3]} 10... Re8 {[%clk 0:02:50.1]} 11. Nd2
{[%clk 0:03:04.5]} 11... Nbd7 {[%clk 0:02:47]} 12. Nc4 {[%clk 0:03:04]} 12...
Ne5 {[%clk 0:02:44.6]} 13. Na3 {[%clk 0:03:02.6]} 13... Rb8 {[%clk 0:02:42.8]}
14. h3 {[%clk 0:03:01.8]} 14... Ba5 {[%clk 0:02:38.5]} 15. f4 {[%clk 0:03:01.2]}
15... Ng6 {[%clk 0:02:36.4]} 16. Nc4 {[%clk 0:02:59.2]} 16... Bxc3 {[%clk
0:02:31.8]} 17. bxc3 {[%clk 0:03:00.1]} 17... b5 {[%clk 0:02:32.1]} 18. axb5
{[%clk 0:03:00.4]} 18... axb5 {[%clk 0:02:33]} 19. Na5 {[%clk 0:02:57.3]} 19...
Bd7 {[%clk 0:02:18.9]} 20. Nc6 {[%clk 0:02:50.8]} 20... Bxc6 {[%clk 0:02:17.5]}
21. dxc6 {[%clk 0:02:51.7]} 21... d5 {[%clk 0:02:01.4]} 22. g4 {[%clk
0:02:46.6]} 22... Nh4 {[%clk 0:01:49.7]} 23. Bh1 {[%clk 0:02:43.5]} 23... Ne4
{[%clk 0:01:44.9]} 24. Qe1 {[%clk 0:02:41.6]} 24... h5 {[%clk 0:01:31]} 25. Ra7
{[%clk 0:02:32.5]} 25... Qb6 {[%clk 0:01:27.1]} 26. Rxf7 {[%clk 0:02:27.6]}
26... Kxf7 {[%clk 0:01:23.1]} 27. Qxh4 {[%clk 0:02:27]} 27... c4+ {[%clk
0:01:11.1]} 28. Kh2 {[%clk 0:02:25.2]} 28... hxg4 {[%clk 0:01:05.4]} 29. Qh5+
{[%clk 0:02:25.1]} 29... Kg8 {[%clk 0:01:02.8]} 30. Qxd5+ {[%clk 0:02:24.7]}
30... Kh8 {[%clk 0:00:59.9]} 31. Bxe4 {[%clk 0:02:23.4]} 31... g6 {[%clk
0:00:26.2]} 32. hxg4 {[%clk 0:02:17]} 32... Rbd8 {[%clk 0:00:16.7]} 33. Qf7
{[%clk 0:02:14.3]} 33... Rxe4 {[%clk 0:00:15.4]} 34. Kg3 {[%clk 0:02:11.9]}
34... Re3+ {[%clk 0:00:11.4]} 35. Bxe3 {[%clk 0:02:10.4]} 35... Qxe3+ {[%clk
0:00:12.3]} 36. Rf3 {[%clk 0:02:10.6]} 36... Qg1+ {[%clk 0:00:11.9]} 37. Kh4
{[%clk 0:02:10.8]} 37... Qh2+ {[%clk 0:00:07.3]} 38. Rh3 {[%clk 0:02:10.6]}
38... Qf2+ {[%clk 0:00:06.1]} 39. Kg5+ {[%clk 0:02:10.8]} 1-0

[Event "*** SCC Grand Prix: Titled Tuesday Blitz"]
[Site "Chess.com"]
[Date "2020.08.25"]
[Round "4"]
[White "catalin009"]
[Black "Panterov"]
[Result "1-0"]
[WhiteElo "2368"]
[BlackElo "1991"]
[TimeControl "180+1"]
[EndTime "10:39:04 PDT"]
[Termination "catalin009 won by resignation"]

1. e4 {[%clk 0:03:00.9]} 1... e6 {[%clk 0:03:00.9]} 2. d4 {[%clk 0:02:59.8]}
2... d5 {[%clk 0:03:01.2]} 3. Bd3 {[%clk 0:03:00.5]} 3... c5 {[%clk 0:03:00.3]}
4. exd5 {[%clk 0:03:00.2]} 4... Qxd5 {[%clk 0:02:59.2]} 5. Nc3 {[%clk
0:02:48.5]} 5... Qxd4 {[%clk 0:02:46.6]} 6. Nf3 {[%clk 0:02:48]} 6... Qg4 {[%clk
0:02:46.5]} 7. Nb5 {[%clk 0:02:22.8]} 7... Na6 {[%clk 0:02:41]} 8. h3 {[%clk
0:02:22.4]} 8... Qxg2 {[%clk 0:02:35.8]} 9. Rh2 {[%clk 0:02:20.9]} 9... Qxh2
{[%clk 0:02:29.8]} 10. Nxh2 {[%clk 0:02:21.8]} 10... Bd7 {[%clk 0:02:26.3]} 11.
Bf4 {[%clk 0:02:16.2]} 11... Nf6 {[%clk 0:02:14.9]} 12. Ng4 {[%clk 0:02:10.4]}
12... Nd5 {[%clk 0:02:13.8]} 13. Bg3 {[%clk 0:01:48.2]} 13... Be7 {[%clk
0:02:11.9]} 14. Ne5 {[%clk 0:01:46.1]} 14... Bc8 {[%clk 0:01:57.9]} 15. Qf3
{[%clk 0:01:36.5]} 15... O-O {[%clk 0:01:53.3]} 16. O-O-O {[%clk 0:01:33.8]}
16... Nab4 {[%clk 0:01:48.4]} 17. Bc4 {[%clk 0:01:07.9]} 17... a6 {[%clk
0:01:47.4]} 18. Nc3 {[%clk 0:01:06.5]} 18... Nf6 {[%clk 0:01:30]} 19. Rg1 {[%clk
0:00:54.5]} 19... Ra7 {[%clk 0:01:15]} 20. a3 {[%clk 0:00:50.2]} 20... b5 {[%clk
0:01:10.8]} 21. axb4 {[%clk 0:00:45.6]} 21... bxc4 {[%clk 0:01:10.9]} 22. Nc6
{[%clk 0:00:46.2]} 22... Rd7 {[%clk 0:01:05.3]} 23. Nxe7+ {[%clk 0:00:45.4]}
23... Rxe7 {[%clk 0:01:04.7]} 24. Qxf6 {[%clk 0:00:38.9]} 24... gxf6 {[%clk
0:00:56.2]} 25. Be5+ {[%clk 0:00:37.7]} 1-0

[Event "*** SCC Grand Prix: Titled Tuesday Blitz"]
[Site "Chess.com"]
[Date "2020.08.25"]
[Round "4"]
[White "Yana_pro"]
[Black "Ausbildung"]
[Result "0-1"]
[WhiteElo "2076"]
[BlackElo "2263"]
[TimeControl "180+1"]
[EndTime "10:39:05 PDT"]
[Termination "Ausbildung won by resignation"]

1. Nf3 {[%clk 0:02:56.3]} 1... g6 {[%clk 0:02:58.9]} 2. g3 {[%clk 0:02:57.2]}
2... Bg7 {[%clk 0:02:58.2]} 3. Bg2 {[%clk 0:02:56.5]} 3... d6 {[%clk 0:02:57.7]}
4. d3 {[%clk 0:02:57.4]} 4... c6 {[%clk 0:02:57.5]} 5. O-O {[%clk 0:02:55.8]}
5... Nd7 {[%clk 0:02:56.9]} 6. Nbd2 {[%clk 0:02:45]} 6... e5 {[%clk 0:02:48.8]}
7. e3 {[%clk 0:02:45.9]} 7... f5 {[%clk 0:02:48.1]} 8. Re1 {[%clk 0:02:43.1]}
8... Ngf6 {[%clk 0:02:47.4]} 9. c4 {[%clk 0:02:06]} 9... O-O {[%clk 0:02:45.6]}
10. Rb1 {[%clk 0:02:03.4]} 10... a5 {[%clk 0:02:43.6]} 11. a3 {[%clk 0:01:46.4]}
11... a4 {[%clk 0:02:39.5]} 12. b4 {[%clk 0:01:43.6]} 12... axb3 {[%clk
0:02:38.3]} 13. Nxb3 {[%clk 0:01:43.5]} 13... Rf7 {[%clk 0:02:37.8]} 14. d4
{[%clk 0:01:43.7]} 14... Qf8 {[%clk 0:02:36.3]} 15. c5 {[%clk 0:01:42]} 15... e4
{[%clk 0:02:26.3]} 16. Ng5 {[%clk 0:01:40]} 16... Re7 {[%clk 0:02:03.6]} 17.
cxd6 {[%clk 0:01:32.1]} 17... Re8 {[%clk 0:02:02.8]} 18. Nc5 {[%clk 0:01:21.4]}
18... Qxd6 {[%clk 0:01:26.1]} 19. Qb3+ {[%clk 0:01:18.7]} 19... Nd5 {[%clk
0:01:23]} 20. Nxd7 {[%clk 0:01:13]} 20... Bxd7 {[%clk 0:01:20.4]} 21. Bd2 {[%clk
0:01:05.7]} 21... b5 {[%clk 0:01:19.6]} 22. Bb4 {[%clk 0:01:00.7]} 22... Qf6
{[%clk 0:01:17.1]} 23. h4 {[%clk 0:00:54.1]} 23... h6 {[%clk 0:01:14.5]} 24. Nh3
{[%clk 0:00:53.6]} 24... g5 {[%clk 0:01:14.7]} 25. Bf1 {[%clk 0:00:49.8]} 25...
Kh7 {[%clk 0:01:13.9]} 26. Bxb5 {[%clk 0:00:48.4]} 26... Nxb4 {[%clk 0:01:08.1]}
27. hxg5 {[%clk 0:00:43.9]} 27... hxg5 {[%clk 0:01:06.8]} 28. Qxb4 {[%clk
0:00:42.1]} 28... cxb5 {[%clk 0:01:06.1]} 29. Kg2 {[%clk 0:00:42.6]} 29... Kg6
{[%clk 0:01:03.9]} 30. Rh1 {[%clk 0:00:41.8]} 0-1

[Event "*** SCC Grand Prix: Titled Tuesday Blitz"]
[Site "Chess.com"]
[Date "2020.08.25"]
[Round "4"]
[White "Rytenko_V"]
[Black "AvitalBor"]
[Result "0-1"]
[WhiteElo "2503"]
[BlackElo "2824"]
[TimeControl "180+1"]
[EndTime "10:39:10 PDT"]
[Termination "AvitalBor won by resignation"]

1. Nf3 {[%clk 0:03:00.9]} 1... d5 {[%clk 0:02:54.5]} 2. c4 {[%clk 0:03:00.3]}
2... e6 {[%clk 0:02:54.1]} 3. e3 {[%clk 0:02:56.7]} 3... Nf6 {[%clk 0:02:53.6]}
4. b3 {[%clk 0:02:56.9]} 4... c5 {[%clk 0:02:53.3]} 5. Bb2 {[%clk 0:02:56.9]}
5... Nc6 {[%clk 0:02:53.6]} 6. Be2 {[%clk 0:02:49.5]} 6... d4 {[%clk 0:02:53.7]}
7. exd4 {[%clk 0:02:48.9]} 7... cxd4 {[%clk 0:02:54.6]} 8. d3 {[%clk 0:02:49.3]}
8... Bc5 {[%clk 0:02:54.7]} 9. O-O {[%clk 0:02:48.8]} 9... O-O {[%clk
0:02:54.5]} 10. a3 {[%clk 0:02:48.5]} 10... a5 {[%clk 0:02:54.3]} 11. Nbd2
{[%clk 0:02:48.1]} 11... e5 {[%clk 0:02:52.3]} 12. Re1 {[%clk 0:02:46.4]} 12...
Re8 {[%clk 0:02:49.4]} 13. Qc2 {[%clk 0:02:39.9]} 13... h6 {[%clk 0:02:48.8]}
14. Bf1 {[%clk 0:02:37]} 14... Bf5 {[%clk 0:02:47.9]} 15. Ne4 {[%clk 0:02:20.8]}
15... Nxe4 {[%clk 0:02:42.5]} 16. dxe4 {[%clk 0:02:21.7]} 16... Be6 {[%clk
0:02:42.4]} 17. Red1 {[%clk 0:02:15.8]} 17... Qe7 {[%clk 0:02:38.3]} 18. Ne1
{[%clk 0:02:15.6]} 18... b6 {[%clk 0:02:32.7]} 19. Nd3 {[%clk 0:02:15.8]} 19...
Rf8 {[%clk 0:02:32.4]} 20. Be2 {[%clk 0:02:06.4]} 20... f5 {[%clk 0:02:29.8]}
21. Bf3 {[%clk 0:02:06.7]} 21... f4 {[%clk 0:02:29.7]} 22. Qe2 {[%clk
0:01:49.5]} 22... Qd7 {[%clk 0:02:23]} 23. h3 {[%clk 0:01:38.3]} 23... Rf6
{[%clk 0:02:22.5]} 24. Bh5 {[%clk 0:00:59.9]} 24... Bd6 {[%clk 0:02:18.6]} 25.
Rac1 {[%clk 0:00:49.9]} 25... Bc5 {[%clk 0:02:15]} 26. Kh2 {[%clk 0:00:40.2]}
26... Raf8 {[%clk 0:02:10.2]} 27. Bg4 {[%clk 0:00:13.6]} 27... f3 {[%clk
0:02:09.7]} 28. Bxf3 {[%clk 0:00:09.6]} 28... Bxh3 {[%clk 0:02:08.3]} 29. Bh5
{[%clk 0:00:07.6]} 29... Be6 {[%clk 0:01:59.6]} 30. b4 {[%clk 0:00:08.1]} 30...
axb4 {[%clk 0:01:54.3]} 31. axb4 {[%clk 0:00:09]} 31... Nxb4 {[%clk 0:01:52.1]}
32. Nxe5 {[%clk 0:00:08.8]} 32... Qd6 {[%clk 0:01:48.9]} 33. f4 {[%clk
0:00:08.9]} 33... Rxf4 {[%clk 0:01:48.7]} 34. g3 {[%clk 0:00:05.1]} 34... Rf2+
{[%clk 0:01:48.1]} 0-1

[Event "*** SCC Grand Prix: Titled Tuesday Blitz"]
[Site "Chess.com"]
[Date "2020.08.25"]
[Round "4"]
[White "Margarita2907"]
[Black "TomasKapitanchuk"]
[Result "0-1"]
[WhiteElo "2097"]
[BlackElo "2387"]
[TimeControl "180+1"]
[EndTime "10:39:11 PDT"]
[Termination "TomasKapitanchuk won by resignation"]

1. e4 {[%clk 0:03:00.9]} 1... c5 {[%clk 0:02:59.9]} 2. Nf3 {[%clk 0:03:00.7]}
2... e6 {[%clk 0:03:00]} 3. d4 {[%clk 0:03:00.2]} 3... cxd4 {[%clk 0:03:00.9]}
4. Nxd4 {[%clk 0:03:00.6]} 4... Nc6 {[%clk 0:03:01.4]} 5. Nc3 {[%clk 0:02:56.8]}
5... Qc7 {[%clk 0:02:57.6]} 6. Be2 {[%clk 0:02:53.1]} 6... Nf6 {[%clk
0:02:55.3]} 7. O-O {[%clk 0:02:48]} 7... Be7 {[%clk 0:02:53.3]} 8. Be3 {[%clk
0:02:46.6]} 8... O-O {[%clk 0:02:52.6]} 9. Kh1 {[%clk 0:02:44.5]} 9... d6 {[%clk
0:02:52.2]} 10. f4 {[%clk 0:02:43.5]} 10... Nxd4 {[%clk 0:02:51.8]} 11. Bxd4
{[%clk 0:02:42.9]} 11... e5 {[%clk 0:02:47.9]} 12. Be3 {[%clk 0:02:39.3]} 12...
exf4 {[%clk 0:02:47.3]} 13. Bxf4 {[%clk 0:02:39.2]} 13... Be6 {[%clk 0:02:48.2]}
14. Qe1 {[%clk 0:02:21.5]} 14... Nd7 {[%clk 0:02:46.8]} 15. Qg3 {[%clk
0:02:11.4]} 15... Ne5 {[%clk 0:02:47.4]} 16. Rad1 {[%clk 0:01:53.9]} 16... a6
{[%clk 0:02:42.5]} 17. Bd3 {[%clk 0:01:29.1]} 17... g6 {[%clk 0:02:32.7]} 18.
Nd5 {[%clk 0:01:23.9]} 18... Bxd5 {[%clk 0:02:32.6]} 19. exd5 {[%clk 0:01:23.4]}
19... Bf6 {[%clk 0:02:33]} 20. Bh6 {[%clk 0:01:12.1]} 20... Bg7 {[%clk
0:02:32.1]} 21. Bxg7 {[%clk 0:01:11.2]} 21... Kxg7 {[%clk 0:02:33]} 22. Qf4
{[%clk 0:01:07.7]} 22... f5 {[%clk 0:02:30.9]} 23. b3 {[%clk 0:00:52.7]} 23...
Rae8 {[%clk 0:02:27.9]} 24. c4 {[%clk 0:00:51.4]} 24... Qc5 {[%clk 0:02:21.7]}
25. Bc2 {[%clk 0:00:42.9]} 25... Ng4 {[%clk 0:02:18.9]} 26. Rf3 {[%clk
0:00:33.8]} 26... Re5 {[%clk 0:02:04.5]} 27. h3 {[%clk 0:00:32.3]} 27... Ne3
{[%clk 0:02:02]} 28. Rc1 {[%clk 0:00:30.5]} 28... Rfe8 {[%clk 0:01:59]} 29. Rf2
{[%clk 0:00:26.8]} 29... Nxc2 {[%clk 0:01:51.1]} 30. Rfxc2 {[%clk 0:00:24.7]}
30... Re1+ {[%clk 0:01:49.3]} 31. Kh2 {[%clk 0:00:21]} 31... Qg1+ {[%clk
0:01:46.1]} 32. Kg3 {[%clk 0:00:20.9]} 32... R8e3+ {[%clk 0:01:35.3]} 33. Kh4
{[%clk 0:00:20.3]} 33... Re4 {[%clk 0:01:35.6]} 0-1

[Event "*** SCC Grand Prix: Titled Tuesday Blitz"]
[Site "Chess.com"]
[Date "2020.08.25"]
[Round "4"]
[White "Carnivoras"]
[Black "Schachmalanders"]
[Result "1-0"]
[WhiteElo "2655"]
[BlackElo "2340"]
[TimeControl "180+1"]
[EndTime "10:39:15 PDT"]
[Termination "Carnivoras won by resignation"]

1. d4 {[%clk 0:03:00.9]} 1... d5 {[%clk 0:02:59.3]} 2. c4 {[%clk 0:03:01]} 2...
e6 {[%clk 0:02:59.5]} 3. Nf3 {[%clk 0:03:01]} 3... c6 {[%clk 0:02:59.9]} 4. e3
{[%clk 0:03:00.1]} 4... f5 {[%clk 0:02:59.8]} 5. Nc3 {[%clk 0:02:57.7]} 5... Nf6
{[%clk 0:02:59.7]} 6. Bd3 {[%clk 0:02:57.1]} 6... Bd6 {[%clk 0:02:58.9]} 7. O-O
{[%clk 0:02:56.4]} 7... O-O {[%clk 0:02:58.6]} 8. b3 {[%clk 0:02:55.6]} 8... b6
{[%clk 0:02:57.8]} 9. Bb2 {[%clk 0:02:55.9]} 9... Bb7 {[%clk 0:02:57.8]} 10. Ne5
{[%clk 0:02:56.3]} 10... Nbd7 {[%clk 0:02:55.9]} 11. f4 {[%clk 0:02:56.4]} 11...
Ne4 {[%clk 0:02:55.7]} 12. Qe2 {[%clk 0:02:53.1]} 12... Ndf6 {[%clk 0:02:54]}
13. Rac1 {[%clk 0:02:50.3]} 13... Rc8 {[%clk 0:02:53.9]} 14. Rc2 {[%clk
0:02:49.2]} 14... Qe7 {[%clk 0:02:49.3]} 15. Rfc1 {[%clk 0:02:49.1]} 15... Kh8
{[%clk 0:02:49.3]} 16. cxd5 {[%clk 0:02:41.9]} 16... exd5 {[%clk 0:02:48.7]} 17.
Ba6 {[%clk 0:02:41.6]} 17... c5 {[%clk 0:02:39.7]} 18. Bd3 {[%clk 0:02:25.8]}
18... Rg8 {[%clk 0:02:29.2]} 19. Nb5 {[%clk 0:02:23.5]} 19... Bb8 {[%clk
0:02:27.1]} 20. dxc5 {[%clk 0:02:21.2]} 20... bxc5 {[%clk 0:02:25.3]} 21. Ba3
{[%clk 0:02:20.5]} 21... a6 {[%clk 0:02:20.2]} 22. Nd4 {[%clk 0:01:52.6]} 22...
Bxe5 {[%clk 0:02:10.2]} 23. Nxf5 {[%clk 0:01:52.3]} 23... Qe6 {[%clk 0:02:03.7]}
24. fxe5 {[%clk 0:01:52.4]} 24... Qxe5 {[%clk 0:01:59.8]} 25. Qf3 {[%clk
0:01:47]} 25... Rgf8 {[%clk 0:01:55.9]} 26. Bb2 {[%clk 0:01:38.1]} 26... Qe6
{[%clk 0:01:51.2]} 27. Bxe4 {[%clk 0:01:37.4]} 27... dxe4 {[%clk 0:01:33.3]} 28.
Qh3 {[%clk 0:01:31.5]} 28... Rfd8 {[%clk 0:01:13.7]} 29. Rf2 {[%clk 0:01:16.3]}
29... Rf8 {[%clk 0:00:58.6]} 30. Qg3 {[%clk 0:01:14]} 30... Nh5 {[%clk
0:00:49.9]} 31. Bxg7+ {[%clk 0:01:12.1]} 31... Kg8 {[%clk 0:00:46.6]} 32. Qg4
{[%clk 0:01:00.3]} 32... Rxf5 {[%clk 0:00:45.7]} 33. Bb2+ {[%clk 0:00:55.5]} 1-0

[Event "*** SCC Grand Prix: Titled Tuesday Blitz"]
[Site "Chess.com"]
[Date "2020.08.25"]
[Round "4"]
[White "Chessdemon2019"]
[Black "MoreChessJulia"]
[Result "1-0"]
[WhiteElo "2357"]
[BlackElo "1885"]
[TimeControl "180+1"]
[EndTime "10:39:20 PDT"]
[Termination "Chessdemon2019 won by resignation"]

1. e4 {[%clk 0:03:00.9]} 1... c5 {[%clk 0:02:58.8]} 2. Nf3 {[%clk 0:02:56]} 2...
d6 {[%clk 0:02:58.4]} 3. d4 {[%clk 0:02:56.3]} 3... cxd4 {[%clk 0:02:57.7]} 4.
Nxd4 {[%clk 0:02:57.2]} 4... Nf6 {[%clk 0:02:56.4]} 5. f3 {[%clk 0:02:57.9]}
5... a6 {[%clk 0:02:55.9]} 6. c4 {[%clk 0:02:54.7]} 6... Nc6 {[%clk 0:02:54.4]}
7. Be3 {[%clk 0:02:54.3]} 7... g6 {[%clk 0:02:53.8]} 8. Nc3 {[%clk 0:02:50.5]}
8... Bg7 {[%clk 0:02:53.2]} 9. Be2 {[%clk 0:02:49]} 9... Be6 {[%clk 0:02:49.5]}
10. Nxe6 {[%clk 0:02:46.4]} 10... fxe6 {[%clk 0:02:49]} 11. O-O {[%clk
0:02:47.1]} 11... e5 {[%clk 0:02:48.7]} 12. Nd5 {[%clk 0:02:45.7]} 12... Nxd5
{[%clk 0:02:47]} 13. cxd5 {[%clk 0:02:45.9]} 13... Nd4 {[%clk 0:02:44.2]} 14.
Qd2 {[%clk 0:02:36]} 14... O-O {[%clk 0:02:42.3]} 15. Rac1 {[%clk 0:02:20.7]}
15... Rc8 {[%clk 0:02:41]} 16. Rc3 {[%clk 0:02:13.2]} 16... Qd7 {[%clk
0:02:18.6]} 17. Rfc1 {[%clk 0:02:09.9]} 17... Rxc3 {[%clk 0:02:16.5]} 18. bxc3
{[%clk 0:02:05.4]} 18... Nb5 {[%clk 0:02:05.6]} 19. a4 {[%clk 0:01:58.6]} 19...
Nc7 {[%clk 0:02:04.9]} 20. Ra1 {[%clk 0:01:52.4]} 20... Rc8 {[%clk 0:02:02.9]}
21. Qb2 {[%clk 0:01:49.6]} 21... Ne8 {[%clk 0:01:52.6]} 22. c4 {[%clk
0:01:49.7]} 22... Rb8 {[%clk 0:01:27.5]} 23. a5 {[%clk 0:01:44.1]} 23... Qd8
{[%clk 0:01:23.1]} 24. c5 {[%clk 0:01:40.6]} 24... dxc5 {[%clk 0:01:19.2]} 25.
Bxc5 {[%clk 0:01:41.5]} 25... Nd6 {[%clk 0:01:18.7]} 26. Qb6 {[%clk 0:01:24.8]}
26... Qxb6 {[%clk 0:01:16.9]} 27. Bxb6 {[%clk 0:01:23.8]} 27... Rc8 {[%clk
0:01:15.5]} 28. Bd3 {[%clk 0:01:20.8]} 28... Bh6 {[%clk 0:01:11.6]} 29. Kf2
{[%clk 0:01:19.2]} 29... Bc1 {[%clk 0:01:09.8]} 30. Ke2 {[%clk 0:01:14.6]} 30...
Bb2 {[%clk 0:01:05.7]} 31. Rb1 {[%clk 0:01:14]} 31... Bd4 {[%clk 0:01:03.6]} 32.
Bxd4 {[%clk 0:01:13.8]} 32... exd4 {[%clk 0:01:02.6]} 33. e5 {[%clk 0:01:14.5]}
33... Nb5 {[%clk 0:01:01.4]} 34. Bxb5 {[%clk 0:01:13.9]} 34... axb5 {[%clk
0:01:01.5]} 35. Rxb5 {[%clk 0:01:14.8]} 35... Rd8 {[%clk 0:00:57.3]} 36. Kd3
{[%clk 0:01:14.2]} 36... Ra8 {[%clk 0:00:52.5]} 37. Kxd4 {[%clk 0:01:14.1]}
37... Kf7 {[%clk 0:00:49.7]} 38. Kc5 {[%clk 0:01:14.4]} 38... Ke8 {[%clk
0:00:47.8]} 39. Kb6 {[%clk 0:01:13]} 39... Kd7 {[%clk 0:00:46.7]} 40. Kxb7
{[%clk 0:01:13.3]} 1-0

[Event "*** SCC Grand Prix: Titled Tuesday Blitz"]
[Site "Chess.com"]
[Date "2020.08.25"]
[Round "4"]
[White "serhanberat_ozdemir"]
[Black "giantslayer83"]
[Result "0-1"]
[WhiteElo "2491"]
[BlackElo "2721"]
[TimeControl "180+1"]
[EndTime "10:39:21 PDT"]
[Termination "giantslayer83 won by resignation"]

1. e4 {[%clk 0:02:59.6]} 1... c6 {[%clk 0:02:59.8]} 2. d4 {[%clk 0:02:58.4]}
2... d5 {[%clk 0:03:00.7]} 3. exd5 {[%clk 0:02:59.2]} 3... cxd5 {[%clk
0:03:00.8]} 4. c4 {[%clk 0:02:59.9]} 4... Nf6 {[%clk 0:02:59.9]} 5. Nc3 {[%clk
0:03:00.3]} 5... g6 {[%clk 0:02:59.9]} 6. Nf3 {[%clk 0:02:59]} 6... Bg7 {[%clk
0:02:59.4]} 7. Bd3 {[%clk 0:02:57.5]} 7... O-O {[%clk 0:02:58]} 8. h3 {[%clk
0:02:55.7]} 8... dxc4 {[%clk 0:02:48.3]} 9. Bxc4 {[%clk 0:02:56.6]} 9... b6
{[%clk 0:02:41.9]} 10. O-O {[%clk 0:02:54.3]} 10... Bb7 {[%clk 0:02:42.3]} 11.
Be3 {[%clk 0:02:54.5]} 11... Nc6 {[%clk 0:02:39.5]} 12. Ne5 {[%clk 0:02:50.2]}
12... Rc8 {[%clk 0:02:36.8]} 13. Bb3 {[%clk 0:02:49.6]} 13... Nb4 {[%clk
0:02:25.7]} 14. Rc1 {[%clk 0:02:34.5]} 14... e6 {[%clk 0:02:23.8]} 15. Qd2
{[%clk 0:02:29.5]} 15... Nbd5 {[%clk 0:02:21.4]} 16. Bg5 {[%clk 0:02:17.3]}
16... Nxc3 {[%clk 0:02:20.2]} 17. bxc3 {[%clk 0:02:05]} 17... Ne4 {[%clk
0:02:19.8]} 18. Bxd8 {[%clk 0:01:51]} 18... Nxd2 {[%clk 0:02:19.6]} 19. Be7
{[%clk 0:01:50.4]} 19... Rfe8 {[%clk 0:02:17.5]} 20. Bd6 {[%clk 0:01:32.2]}
20... Nxf1 {[%clk 0:02:01.8]} 21. Kxf1 {[%clk 0:01:33.1]} 21... Bh6 {[%clk
0:02:01]} 22. Rc2 {[%clk 0:01:31.1]} 22... Be4 {[%clk 0:01:55.7]} 23. Re2 {[%clk
0:01:26]} 23... Bb7 {[%clk 0:01:42.5]} 24. c4 {[%clk 0:01:13]} 24... Red8 {[%clk
0:01:40.9]} 25. c5 {[%clk 0:01:13]} 25... bxc5 {[%clk 0:01:34.1]} 26. dxc5
{[%clk 0:01:13.9]} 26... Rxd6 {[%clk 0:01:20.8]} 27. cxd6 {[%clk 0:01:14.8]}
27... Rc1+ {[%clk 0:01:20.9]} 28. Re1 {[%clk 0:01:14.9]} 28... Ba6+ {[%clk
0:01:20.8]} 29. Nc4 {[%clk 0:00:58.2]} 29... Bxc4+ {[%clk 0:01:20.4]} 30. Bxc4
{[%clk 0:00:59.1]} 30... Rxc4 {[%clk 0:01:21.2]} 31. Rd1 {[%clk 0:00:58.8]}
31... Rc1 {[%clk 0:01:16]} 32. Rxc1 {[%clk 0:00:38]} 32... Bxc1 {[%clk
0:01:16.9]} 33. d7 {[%clk 0:00:38.9]} 33... Bg5 {[%clk 0:01:15.9]} 34. f4 {[%clk
0:00:39.5]} 34... Bd8 {[%clk 0:01:15.3]} 0-1

[Event "*** SCC Grand Prix: Titled Tuesday Blitz"]
[Site "Chess.com"]
[Date "2020.08.25"]
[Round "4"]
[White "SahajGrover"]
[Black "rdclayton"]
[Result "1-0"]
[WhiteElo "2653"]
[BlackElo "2339"]
[TimeControl "180+1"]
[EndTime "10:39:27 PDT"]
[Termination "SahajGrover won by resignation"]

1. Nf3 {[%clk 0:03:00.9]} 1... d5 {[%clk 0:02:44.3]} 2. g3 {[%clk 0:02:59.5]}
2... Nf6 {[%clk 0:02:42.6]} 3. Bg2 {[%clk 0:02:59.5]} 3... c6 {[%clk 0:02:43.1]}
4. O-O {[%clk 0:03:00]} 4... Bg4 {[%clk 0:02:43.7]} 5. b3 {[%clk 0:02:58.1]}
5... Nbd7 {[%clk 0:02:42.9]} 6. Bb2 {[%clk 0:02:58]} 6... e6 {[%clk 0:02:43.4]}
7. c4 {[%clk 0:02:58.2]} 7... Bd6 {[%clk 0:02:41.7]} 8. d3 {[%clk 0:02:58.4]}
8... O-O {[%clk 0:02:41]} 9. Nbd2 {[%clk 0:02:58.6]} 9... h6 {[%clk 0:02:26.7]}
10. h3 {[%clk 0:02:58.1]} 10... Bf5 {[%clk 0:02:25.8]} 11. e4 {[%clk 0:02:54.1]}
11... dxe4 {[%clk 0:02:25.6]} 12. dxe4 {[%clk 0:02:54.3]} 12... Bxe4 {[%clk
0:02:21.6]} 13. Nxe4 {[%clk 0:02:49.8]} 13... Nxe4 {[%clk 0:02:22.5]} 14. Nh2
{[%clk 0:02:22.9]} 14... Ndf6 {[%clk 0:02:11.7]} 15. Ng4 {[%clk 0:02:09.5]}
15... Be7 {[%clk 0:01:52.8]} 16. Bxe4 {[%clk 0:01:44.9]} 16... Nxe4 {[%clk
0:01:35.7]} 17. Nxh6+ {[%clk 0:01:44]} 17... gxh6 {[%clk 0:01:30.1]} 18. Qg4+
{[%clk 0:01:43.8]} 18... Ng5 {[%clk 0:01:29.1]} 19. h4 {[%clk 0:01:44.2]} 19...
f5 {[%clk 0:01:28]} 20. Qh5 {[%clk 0:01:44.3]} 20... Qe8 {[%clk 0:01:23]} 21.
Qxh6 {[%clk 0:01:40.2]} 21... Nf3+ {[%clk 0:00:53.9]} 22. Kg2 {[%clk 0:01:37.3]}
22... e5 {[%clk 0:00:35.6]} 23. Kxf3 {[%clk 0:01:35]} 23... Rf6 {[%clk
0:00:33.3]} 24. Qe3 {[%clk 0:01:30]} 24... f4 {[%clk 0:00:30.1]} 25. gxf4 {[%clk
0:01:24.2]} 25... Rxf4+ {[%clk 0:00:28.3]} 26. Ke2 {[%clk 0:01:24.1]} 26... Bf6
{[%clk 0:00:21]} 27. Rg1+ {[%clk 0:01:22.9]} 27... Kf7 {[%clk 0:00:19.5]} 28.
Rad1 {[%clk 0:01:19.8]} 28... Qe6 {[%clk 0:00:18.5]} 29. Qd3 {[%clk 0:01:19.2]}
29... Rh8 {[%clk 0:00:11.5]} 30. Qg6+ {[%clk 0:01:19.6]} 30... Ke7 {[%clk
0:00:10]} 31. Ba3+ {[%clk 0:01:20.5]} 1-0